bitfinex/quotes_SOLUSD_20230103
["timestamp","ask_amount","ask_price","bid_price","bid_amount"]
[1672734296413,23.7452,11.849,11.841,11.94877213]
[1672734298409,23.7452,11.849,11.841,75.37877213]
[1672734298833,23.7452,11.849,11.841,11.94877213]
[1672734309134,21.2452,11.849,11.84,23.3995]
[1672734309872,21.2452,11.849,11.84,35.34827213]
[1672734310106,21.2452,11.849,11.84,23.3995]
[1672734311371,21.2452,11.849,11.84,35.34827213]
[1672734314404,21.2452,11.849,11.841,30.0]
[1672734314845,21.2452,11.849,11.84,98.78827213]
[1672734315363,21.2452,11.849,11.841,30.0]
[1672734315882,21.2452,11.849,11.842,11.94877213]
[1672734318281,21.2452,11.849,11.84,86.8395]
[1672734318810,21.2452,11.849,11.84,98.78827213]
[1672734319570,21.2452,11.849,11.84,86.8395]
[1672734319755,21.2452,11.849,11.84,23.3995]
[1672734320913,30.0,11.848,11.84,23.3995]
[1672734324505,93.4,11.848,11.84,23.3995]
[1672734325447,30.0,11.848,11.84,23.3995]
[1672734325672,114.6352,11.849,11.84,23.3995]
[1672734325866,51.2452,11.849,11.84,23.3995]
[1672734326405,63.4,11.848,11.84,23.3995]
[1672734326609,51.2452,11.849,11.84,23.3995]
[1672734333871,21.2452,11.849,11.84,35.34827213]
[1672734336303,21.2452,11.849,11.84,23.3995]
[1672734337024,30.0,11.848,11.84,23.3995]
[1672734338599,21.2452,11.849,11.84,23.3995]
[1672734350368,63.4,11.848,11.84,23.3995]
[1672734350583,30.0,11.847,11.84,23.3995]
[1672734351859,63.41,11.846,11.84,23.3995]
[1672734352259,63.41,11.846,11.831,63.49]
[1672734352474,30.0,11.844,11.829,224.0732]
[1672734352688,20.0,11.843,11.829,224.0732]
[1672734352904,53.4754,11.842,11.83,136.5951]
[1672734353113,20.0,11.841,11.831,63.49]
[1672734353535,20.0,11.841,11.831,86.1961]
[1672734354385,20.0,11.841,11.832,30.0]
[1672734354700,109.6936,11.843,11.832,30.0]
[1672734354701,109.6936,11.843,11.834,30.0]
[1672734355014,109.6936,11.843,11.835,20.0]
[1672734355226,23.4558,11.845,11.835,20.0]
[1672734355438,23.4558,11.845,11.835,106.1761]
[1672734355753,93.4,11.847,11.835,106.1761]
[1672734355937,93.4,11.847,11.836,22.7061]
[1672734358370,151.24430485,11.847,11.836,22.7061]
[1672734360683,30.0,11.845,11.828,63.5]
[1672734361007,12.98,11.84,11.828,221.6272]
[1672734361196,12.98,11.84,11.829,23.5701]
[1672734362032,76.42,11.84,11.829,23.5701]
[1672734362269,12.98,11.84,11.829,23.5701]
[1672734362472,36.6763,11.84,11.829,23.5701]
[1672734363742,63.45,11.839,11.829,23.5701]
[1672734363951,30.0,11.838,11.829,23.5701]
[1672734364144,63.46,11.837,11.829,23.5701]
[1672734365082,24.0186,11.839,11.829,23.5701]
[1672734365738,87.4686,11.839,11.829,23.5701]
[1672734366343,24.0186,11.839,11.829,23.5701]
[1672734366557,24.0186,11.839,11.83,30.0]
[1672734366768,24.0186,11.839,11.829,23.5701]
[1672734368869,24.0186,11.839,11.83,63.49]
[1672734369079,24.6017,11.838,11.821,30.0]
[1672734369291,24.6017,11.838,11.822,83.54]
[1672734369500,24.6017,11.838,11.823,30.0]
[1672734369712,24.6017,11.838,11.825,30.0]
[1672734369922,24.6017,11.838,11.826,63.52]
[1672734370552,24.6017,11.838,11.827,24.4635]
[1672734370764,24.6017,11.838,11.828,63.5]
[1672734370975,24.6017,11.838,11.828,87.9635]
[1672734371184,24.6017,11.838,11.828,24.4635]
[1672734378445,24.6017,11.838,11.829,11.94877213]
[1672734380874,88.0517,11.838,11.829,11.94877213]
[1672734382249,118.0517,11.838,11.829,11.94877213]
[1672734382444,118.0517,11.838,11.828,24.4635]
[1672734382647,30.0,11.837,11.828,24.4635]
[1672734382980,63.46,11.836,11.828,24.4635]
[1672734383171,93.46,11.837,11.828,24.4635]
[1672734388740,93.46,11.837,11.823,11.94877213]
[1672734388741,93.46,11.837,11.822,63.54]
[1672734388951,93.46,11.837,11.819,24.3365]
[1672734388952,30.0,11.835,11.82,227.7073]
[1672734389177,20.0,11.834,11.82,227.7073]
[1672734389379,24.523,11.833,11.821,140.1674]
[1672734389589,20.0,11.832,11.822,63.54]
[1672734390013,12.88,11.84,11.824,30.0]
[1672734390221,24.523,11.839,11.826,30.0]
[1672734390433,24.523,11.839,11.827,227.6673]
[1672734391176,24.523,11.839,11.829,30.0]
[1672734391389,24.523,11.839,11.828,164.1573]
[1672734393073,30.0,11.838,11.828,164.1573]
[1672734395175,87.973,11.839,11.828,164.1573]
[1672734395371,24.523,11.839,11.828,164.1573]
[1672734396224,87.973,11.839,11.828,164.1573]
[1672734396535,24.523,11.839,11.828,164.1573]
[1672734396942,336.523,11.839,11.828,164.1573]
[1672734397153,30.0,11.838,11.828,164.1573]
[1672734406541,54.523,11.839,11.828,164.1573]
[1672734406754,24.523,11.839,11.829,30.0]
[1672734406954,24.523,11.839,11.829,118.092]
[1672734408128,336.523,11.839,11.829,88.092]
[1672734409169,24.523,11.839,11.829,88.092]
[1672734410223,24.523,11.839,11.83,30.0]
[1672734411055,24.523,11.839,11.829,88.092]
[1672734411478,24.523,11.839,11.829,142.25533349]
[1672734411797,24.523,11.839,11.83,30.0]
[1672734412214,24.523,11.839,11.829,142.25533349]
[1672734416310,24.523,11.839,11.829,88.092]
[1672734418419,24.523,11.839,11.829,142.25533349]
[1672734418635,24.523,11.839,11.83,30.0]
[1672734418826,24.523,11.839,11.831,63.49]
[1672734419156,24.523,11.839,11.832,30.0]
[1672734419787,24.523,11.839,11.832,84.16333349]
[1672734420831,12.86,11.85,11.833,109.11227352]
[1672734421146,53.8002,11.849,11.835,30.0]
[1672734421340,53.8002,11.849,11.836,167.0194]
[1672734421552,63.4,11.848,11.836,221.18273349]
[1672734421775,30.0,11.847,11.837,54.16333349]
[1672734421971,30.0,11.847,11.837,24.1208]
[1672734422601,83.41,11.846,11.832,115.59281996]
[1672734422817,30.0,11.845,11.831,47.2028]
[1672734423143,30.0,11.843,11.831,47.2028]
[1672734423357,20.0,11.842,11.831,47.2028]
[1672734423965,44.3292,11.842,11.831,47.2028]
[1672734425018,356.3292,11.842,11.831,47.2028]
[1672734425220,419.7592,11.842,11.831,47.2028]
[1672734429550,12.98,11.84,11.831,47.2028]
[1672734429761,12.98,11.84,11.831,24.1208]
[1672734434379,76.42,11.84,11.831,24.1208]
[1672734434587,30.0,11.839,11.831,24.1208]
[1672734435428,63.45,11.838,11.823,63.53]
[1672734435650,63.45,11.838,11.814,30.0]
[1672734435651,30.0,11.836,11.816,30.0]
[1672734435852,30.0,11.834,11.818,30.0]
[1672734436065,157.4788,11.833,11.819,222.3593]
[1672734436497,30.0,11.832,11.819,222.3593]
[1672734436810,20.0,11.831,11.82,158.3005]
[1672734437007,20.0,11.831,11.821,63.54]
[1672734437213,42.9786,11.831,11.82,158.3005]
[1672734437845,42.9786,11.831,11.821,30.0]
[1672734438055,42.9786,11.831,11.821,93.54]
[1672734438471,42.9786,11.831,11.821,86.1741]
[1672734438685,42.9786,11.831,11.822,30.0]
[1672734439850,42.9786,11.831,11.821,86.1741]
[1672734446244,30.0,11.83,11.821,86.1741]
[1672734446679,30.0,11.83,11.821,22.6341]
[1672734447091,30.0,11.83,11.821,86.1741]
[1672734448040,22.9786,11.831,11.821,86.1741]
[1672734450247,30.0,11.83,11.821,22.6341]
[1672734450454,30.0,11.83,11.821,86.1741]
[1672734451097,106.51,11.83,11.821,22.6341]
[1672734453911,106.5,11.83,11.821,22.6341]
[1672734454772,106.5,11.83,11.821,22.5496871]
[1672734456436,171.17987586,11.83,11.821,0.0096871]
[1672734456764,171.17987586,11.83,11.812,63.59]
[1672734456977,13.03,11.82,11.809,181.4124]
[1672734457295,63.55,11.819,11.809,117.8024]
[1672734457491,30.0,11.818,11.809,117.8024]
[1672734457703,63.56,11.817,11.809,117.8024]
[1672734459389,30.0,11.816,11.809,117.8024]
[1672734460120,30.0,11.816,11.8,30.0]
[1672734460340,30.0,11.816,11.801,63.65]
[1672734460862,30.0,11.816,11.802,110.5392]
[1672734461073,90.9097,11.82,11.803,63.64]
[1672734461282,77.8397,11.82,11.805,43.73873637]
[1672734461499,141.3897,11.82,11.806,63.62]
[1672734461925,141.3897,11.82,11.807,157.6422]
[1672734462456,111.3897,11.82,11.807,157.6422]
[1672734462667,111.3897,11.82,11.808,182.3255355]
[1672734464025,141.3897,11.82,11.808,182.3255355]
[1672734465172,111.3897,11.82,11.809,30.0]
[1672734465385,111.3897,11.82,11.808,182.3255355]
[1672734466345,141.3897,11.82,11.808,182.3255355]
[1672734466564,111.3897,11.82,11.808,182.3255355]
[1672734467080,111.3897,11.82,11.809,30.0]
[1672734467290,111.3897,11.82,11.808,182.3255355]
[1672734470746,111.3897,11.82,11.808,228.8003355]
[1672734471616,30.0,11.819,11.808,228.8003355]
[1672734471914,63.56,11.818,11.808,228.8003355]
[1672734479077,30.0,11.817,11.808,228.8003355]
[1672734479289,63.57,11.816,11.808,228.8003355]
[1672734479502,30.0,11.814,11.808,70.4548355]
[1672734479718,20.0,11.813,11.808,70.4548355]
[1672734481281,54.9728,11.817,11.808,70.4548355]
[1672734481497,24.9728,11.817,11.808,70.4548355]
[1672734482969,63.57,11.816,11.808,70.4548355]
[1672734483383,88.5328,11.817,11.808,70.4548355]
[1672734485257,24.9728,11.817,11.808,70.4548355]
[1672734485467,54.9728,11.817,11.808,70.4548355]
[1672734486545,30.0,11.815,11.808,70.4548355]
[1672734486734,30.0,11.813,11.808,70.4548355]
[1672734486944,83.59,11.812,11.808,70.4548355]
[1672734487149,20.0,11.812,11.808,70.4548355]
[1672734488217,30.0,11.811,11.808,70.4548355]
[1672734493682,30.0,11.811,11.81,0.00621645]
[1672734493897,93.6,11.811,11.81,0.00621645]
[1672734500837,93.6,11.811,11.808,70.4548355]
[1672734500838,30.0,11.811,11.808,70.4548355]
[1672734501145,93.6,11.81,11.808,0.0048355]
[1672734501344,213.5634,11.81,11.808,0.0048355]
[1672734502086,169.5704,11.809,11.808,0.0048355]
[1672734502302,113.217,11.809,11.808,0.0048355]
[1672734503249,49.607,11.809,11.808,0.0048355]
[1672734503458,49.607,11.809,11.794,63.69]
[1672734503777,49.607,11.809,11.793,140.1817]
[1672734503778,12.98,11.8,11.793,140.1817]
[1672734504506,63.66,11.799,11.793,140.1817]
[1672734504701,12.98,11.8,11.793,137.6817]
[1672734504906,63.65,11.801,11.793,137.6817]
[1672734505753,30.0,11.802,11.793,137.6817]
[1672734505963,47.8355,11.803,11.793,137.6817]
[1672734506175,47.8355,11.803,11.794,115.67314428]
[1672734506507,63.61,11.809,11.795,180.99981095]
[1672734506711,106.75,11.81,11.795,180.99981095]
[1672734506924,106.75,11.81,11.796,105.04594665]
[1672734507243,106.75,11.81,11.796,152.71474665]
[1672734507456,106.75,11.81,11.796,102.29666634]
[1672734507766,106.75,11.81,11.796,47.6688]
[1672734509028,76.75,11.81,11.796,47.6688]
[1672734509227,46.9402,11.812,11.798,30.0]
[1672734509653,46.9402,11.812,11.799,123.18917338]
[1672734510072,46.9402,11.812,11.8,123.84739763]
[1672734510282,76.9402,11.812,11.8,111.8942]
[1672734510492,63.6,11.811,11.8,123.84739763]
[1672734510702,63.6,11.811,11.8,111.8942]
[1672734511114,140.5302,11.812,11.8,111.8942]
[1672734511759,76.9402,11.812,11.8,175.5442]
[1672734511960,63.6,11.811,11.8,111.8942]
[1672734513020,140.5302,11.812,11.8,111.8942]
[1672734513652,140.5302,11.812,11.8,123.84739763]
[1672734513863,140.5302,11.812,11.8,111.8942]
[1672734514491,110.5302,11.812,11.8,123.84739763]
[1672734514705,46.9402,11.812,11.8,123.84739763]
[1672734515011,46.9402,11.812,11.8,234.62506805]
[1672734515758,63.6,11.811,11.8,234.62506805]
[1672734516163,13.07,11.81,11.8,111.8942]
[1672734516498,30.0,11.808,11.8,111.8942]
[1672734517335,83.62,11.807,11.799,46.0768]
[1672734517552,30.0,11.806,11.792,115.5058]
[1672734517764,30.0,11.804,11.793,115.5058]
[1672734517950,20.0,11.803,11.793,115.5058]
[1672734519528,20.0,11.803,11.793,127.45899763]
[1672734519739,20.0,11.803,11.793,171.33179338]
[1672734520388,20.0,11.803,11.793,127.45899763]
[1672734521120,20.0,11.803,11.793,115.5058]
[1672734522051,20.0,11.804,11.793,240.49205628]
[1672734522271,20.0,11.804,11.793,252.44525391]
[1672734522472,20.0,11.804,11.793,115.5058]
[1672734523329,50.0,11.804,11.793,115.5058]
[1672734526165,20.0,11.804,11.793,115.5058]
[1672734527102,50.0,11.804,11.793,115.5058]
[1672734531754,20.0,11.804,11.793,115.5058]
[1672734532471,20.0,11.804,11.794,30.0]
[1672734533105,20.0,11.804,11.795,11.95319763]
[1672734533315,13.1,11.81,11.795,11.95319763]
[1672734533521,13.07,11.81,11.796,110.1087]
[1672734533852,13.07,11.81,11.796,165.58008962]
[1672734534062,13.07,11.81,11.797,165.1815]
[1672734534800,76.67,11.81,11.797,165.1815]
[1672734535957,30.0,11.809,11.797,165.1815]
[1672734536355,76.67,11.81,11.798,11.95319763]
[1672734536356,13.07,11.81,11.798,11.95319763]
[1672734536583,48.0909,11.812,11.798,11.95319763]
[1672734536793,48.0909,11.812,11.799,48.4671]
[1672734536992,111.6809,11.812,11.799,48.4671]
[1672734537410,111.6809,11.812,11.8,30.0]
[1672734538052,111.6809,11.812,11.8,253.1825]
[1672734538246,111.6809,11.812,11.8,159.5325]
[1672734538667,48.0909,11.812,11.8,159.5325]
[1672734540373,13.14,11.82,11.8,171.48569763]
[1672734540696,13.14,11.82,11.801,266.70044237]
[1672734540893,13.14,11.82,11.803,30.0]
[1672734541104,63.55,11.819,11.804,223.9764]
[1672734541312,30.0,11.818,11.804,223.9764]
[1672734541518,63.56,11.817,11.804,223.9764]
[1672734541727,63.56,11.817,11.805,160.3464]
[1672734542140,30.0,11.815,11.805,160.3464]
[1672734542354,20.0,11.814,11.805,160.3464]
[1672734548040,30.0,11.812,11.805,160.3464]
[1672734551735,13.06,11.81,11.805,160.3464]
[1672734552565,13.06,11.81,11.801,24.7474]
[1672734552776,13.06,11.81,11.799,117.2067]
[1672734554477,13.06,11.81,11.799,129.15989763]
[1672734554896,13.06,11.81,11.8,63.65]
[1672734555421,13.06,11.81,11.8,86.6144]
[1672734558667,24.3915,11.811,11.8,98.56759763]
[1672734559191,24.3915,11.811,11.8,86.6144]
[1672734561389,24.3915,11.811,11.8,98.56759763]
[1672734561595,24.3915,11.811,11.801,30.0]
[1672734561815,24.3915,11.811,11.801,82.73180878]
[1672734562022,24.3915,11.811,11.802,75.59319763]
[1672734562232,24.3915,11.811,11.802,128.32500641]
[1672734562456,24.3915,11.811,11.803,52.73180878]
[1672734562971,154.7349,11.822,11.804,155.47649484]
[1672734563295,154.7349,11.822,11.805,11.95319763]
[1672734563513,30.0,11.82,11.807,30.0]
[1672734563724,30.0,11.82,11.808,63.61]
[1672734564334,52.5953,11.82,11.809,24.7026]
[1672734565509,65.5553,11.82,11.809,24.7026]
[1672734567178,30.0,11.818,11.809,24.7026]
[1672734571188,65.6353,11.82,11.809,24.7026]
[1672734572429,30.0,11.818,11.809,24.7026]
[1672734575796,65.6353,11.82,11.809,24.7026]
[1672734576006,63.55,11.819,11.809,24.7026]
[1672734576435,65.6353,11.82,11.809,24.7026]
[1672734578447,63.55,11.819,11.809,24.7026]
[1672734578666,65.6353,11.82,11.809,24.7026]
[1672734580979,30.0,11.818,11.809,24.7026]
[1672734595804,35.6353,11.82,11.81,30.0]
[1672734596024,22.5953,11.82,11.81,30.0]
[1672734596213,22.5953,11.82,11.809,88.3126]
[1672734596426,30.0,11.819,11.809,88.3126]
[1672734596644,30.0,11.819,11.809,24.7026]
[1672734597055,35.6053,11.82,11.809,24.7026]
[1672734597480,35.6053,11.82,11.809,88.3126]
[1672734601371,35.6053,11.82,11.809,24.7026]
[1672734602434,22.5953,11.82,11.809,36.65579763]
[1672734602646,43.0,11.83,11.809,162.40893505]
[1672734602839,43.0,11.83,11.81,323.40395214]
[1672734603255,43.0,11.83,11.811,191.66938719]
[1672734603490,119.5277,11.83,11.811,162.2525]
[1672734603705,53.5905206,11.829,11.811,162.2525]
[1672734603907,12.92,11.82,11.811,162.2525]
[1672734613661,24.8219,11.821,11.811,162.2525]
[1672734614531,120.1697,11.83,11.812,30.0]
[1672734614532,30.0,11.829,11.812,30.0]
[1672734614742,54.1607,11.829,11.812,212.9328]
[1672734615370,54.1607,11.829,11.814,30.0]
[1672734615583,54.1607,11.829,11.815,162.9328]
[1672734616313,54.1607,11.829,11.816,23.7508]
[1672734617046,54.1607,11.829,11.817,23.7508]
[1672734618114,54.1607,11.829,11.818,23.7508]
[1672734621573,24.1607,11.829,11.818,23.7508]
[1672734623258,24.1607,11.829,11.818,35.70399763]
[1672734625249,24.1607,11.829,11.818,23.7508]
[1672734629241,24.1607,11.829,11.819,30.0]
[1672734629668,24.1607,11.829,11.819,42.30480396]
[1672734629861,65.09,11.84,11.821,30.0]
[1672734629862,12.97,11.84,11.821,30.0]
[1672734630073,30.0,11.837,11.822,20.0]
[1672734630714,30.0,11.837,11.823,166.8781]
[1672734630929,30.0,11.837,11.824,20.0]
[1672734631117,30.0,11.837,11.825,24.7173]
[1672734631754,30.0,11.837,11.826,24.7173]
[1672734633326,78.7775,11.838,11.826,24.7173]
[1672734634293,78.7775,11.838,11.827,24.4157]
[1672734635211,48.7775,11.838,11.827,24.4157]
[1672734635425,48.7775,11.838,11.828,12.29866484]
[1672734635647,48.7775,11.838,11.827,24.4157]
[1672734635971,30.0,11.837,11.827,24.4157]
[1672734636372,48.7775,11.838,11.827,24.4157]
[1672734637021,48.7775,11.838,11.827,36.71436484]
[1672734637424,48.7775,11.838,11.828,30.0]
[1672734637838,48.7775,11.838,11.828,24.9034]
[1672734639021,30.0,11.837,11.828,24.9034]
[1672734652896,48.7775,11.838,11.829,12.29866484]
[1672734653505,48.7775,11.838,11.828,24.9034]
[1672734653717,48.7775,11.838,11.829,12.29866484]
[1672734654033,48.7775,11.838,11.828,24.9034]
[1672734656042,48.7775,11.838,11.829,30.0]
[1672734656238,48.7775,11.838,11.828,37.20206484]
[1672734658124,48.7775,11.838,11.829,63.5]
[1672734659076,63.43,11.842,11.83,50.0]
[1672734659292,30.0,11.847,11.831,86.0819]
[1672734659293,93.42,11.843,11.831,86.0819]
[1672734659502,30.0,11.843,11.832,42.5919]
[1672734659725,30.0,11.843,11.833,63.48]
[1672734659921,30.0,11.843,11.834,20.0]
[1672734660331,30.0,11.845,11.834,20.0]
[1672734661593,182.1946,11.846,11.834,20.0]
[1672734661808,118.7846,11.846,11.834,175.29066484]
[1672734662017,118.7846,11.846,11.835,63.47]
[1672734662335,118.7846,11.846,11.835,75.68136109]
[1672734662546,118.7846,11.846,11.835,99.18096109]
[1672734663292,118.7846,11.846,11.835,86.88229625]
[1672734663615,118.7846,11.846,11.835,99.18096109]
[1672734674104,142.8505,11.846,11.835,99.18096109]
[1672734682206,63.39,11.849,11.835,99.18096109]
[1672734682517,12.86,11.85,11.836,185.9065]
[1672734682734,63.39,11.849,11.837,165.9065]
[1672734682934,30.0,11.848,11.838,23.9786]
[1672734683148,30.0,11.846,11.838,23.9786]
[1672734683567,20.0,11.845,11.828,63.5]
[1672734683771,12.98,11.84,11.828,23.9786]
[1672734683969,24.106,11.839,11.828,23.9786]
[1672734684621,87.556,11.839,11.828,23.9786]
[1672734684819,30.0,11.838,11.828,23.9786]
[1672734685683,30.0,11.836,11.828,23.9786]
[1672734687884,83.47,11.835,11.804,140.02676487]
[1672734688103,30.0,11.829,11.817,164.8365]
[1672734688312,93.5,11.829,11.817,164.8365]
[1672734688626,30.0,11.829,11.817,228.3965]
[1672734688834,77.9924,11.829,11.817,228.3965]
[1672734689346,77.9924,11.829,11.817,164.8365]
[1672734694382,77.9924,11.829,11.817,228.3965]
[1672734694913,77.9924,11.829,11.817,164.8365]
[1672734696195,141.4924,11.829,11.817,164.8365]
[1672734696824,77.9924,11.829,11.817,164.8365]
[1672734697036,77.9924,11.829,11.817,228.3965]
[1672734704825,47.9924,11.829,11.817,228.3965]
[1672734705352,23.699,11.828,11.818,23.0487]
[1672734705539,23.699,11.828,11.819,63.55]
[1672734716592,116.4371,11.838,11.82,30.0]
[1672734716799,24.7479,11.835,11.821,63.54]
[1672734717123,24.7479,11.835,11.822,50.0]
[1672734717337,24.7479,11.835,11.824,30.0]
[1672734717640,24.7479,11.835,11.826,30.0]
[1672734717847,24.7479,11.835,11.827,63.51]
[1672734718043,24.7479,11.835,11.825,63.52]
[1672734720482,24.7479,11.835,11.825,88.4633]
[1672734737084,30.0,11.834,11.825,88.4633]
[1672734739724,30.0,11.834,11.825,24.9433]
[1672734739919,30.0,11.834,11.825,88.4633]
[1672734748447,30.0,11.834,11.825,100.76196484]
[1672734748765,30.0,11.834,11.825,88.4633]
[1672734752209,24.7479,11.835,11.825,88.4633]
[1672734752531,24.7479,11.835,11.826,12.29866484]
[1672734752753,24.7479,11.835,11.827,63.51]
[1672734753601,24.7479,11.835,11.826,86.0777]
[1672734754211,30.0,11.834,11.826,22.5677]
[1672734755372,30.0,11.834,11.826,86.0777]
[1672734761255,30.0,11.834,11.817,63.56]
[1672734761468,12.96,11.83,11.817,225.0637]
[1672734761712,22.62,11.829,11.818,24.2277]
[1672734762020,22.62,11.829,11.819,63.55]
[1672734762329,30.0,11.828,11.819,63.55]
[1672734762541,30.0,11.828,11.818,87.7877]
[1672734762753,54.5493,11.828,11.818,87.7877]
[1672734764120,24.5493,11.828,11.818,87.7877]
[1672734768980,30.0,11.827,11.818,87.7877]
[1672734786548,54.5493,11.828,11.818,87.7877]
[1672734786760,24.5493,11.828,11.818,87.7877]
[1672734788323,30.0,11.827,11.818,87.7877]
[1672734788961,30.0,11.827,11.797,42.74151387]
[1672734789172,12.96,11.82,11.806,163.211]
[1672734789405,12.96,11.82,11.807,171.00836484]
[1672734789717,12.96,11.82,11.808,63.61]
[1672734789929,12.96,11.82,11.808,87.0353]
[1672734790136,12.96,11.82,11.809,20.0]
[1672734790348,12.96,11.82,11.81,63.6]
[1672734790556,30.0,11.819,11.81,63.6]
[1672734790770,94.16188365,11.819,11.809,87.0353]
[1672734790963,64.16188365,11.818,11.809,87.0353]
[1672734792531,30.0,11.817,11.809,87.0353]
[1672734794530,24.8979,11.818,11.809,87.0353]
[1672734794745,30.0,11.822,11.81,20.0]
[1672734794950,30.0,11.822,11.811,63.6]
[1672734795159,30.0,11.822,11.812,20.0]
[1672734795370,30.0,11.822,11.813,63.58]
[1672734795581,30.0,11.822,11.814,20.0]
[1672734796760,13.02,11.82,11.814,20.0]
[1672734798325,13.02,11.82,11.811,112.0037]
[1672734798540,30.0,11.819,11.811,112.0037]
[1672734798975,30.0,11.819,11.807,24.7666]
[1672734799185,54.1808,11.819,11.807,24.7666]
[1672734799804,30.0,11.817,11.807,24.7666]
[1672734800014,30.0,11.817,11.807,113.1662]
[1672734800665,54.1808,11.817,11.807,113.1662]
[1672734802336,24.1808,11.817,11.807,113.1662]
[1672734804436,24.1808,11.817,11.807,125.46486484]
[1672734807810,24.1808,11.817,11.807,113.1662]
[1672734810225,24.1808,11.817,11.807,113.10154498]
[1672734816107,24.1808,11.817,11.807,49.48154498]
[1672734816310,24.1808,11.817,11.807,113.10154498]
[1672734820190,30.0,11.816,11.807,49.48154498]
[1672734820613,30.0,11.816,11.807,24.7796]
[1672734820943,12.65987586,11.815,11.803,63.64]
[1672734821134,12.94,11.81,11.802,23.1482]
[1672734821349,12.94,11.81,11.798,63.67]
[1672734821677,12.94,11.81,11.798,87.3878]
[1672734822288,65.18,11.81,11.798,87.3878]
[1672734822628,128.88,11.81,11.798,23.7178]
[1672734822936,30.0,11.809,11.798,23.7178]
[1672734823903,53.43,11.809,11.798,23.7178]
[1672734831253,117.04,11.809,11.798,23.7178]
[1672734831655,168.22979031,11.809,11.798,23.7178]
[1672734836290,117.04,11.809,11.798,23.7178]
[1672734836727,23.43,11.809,11.798,87.3878]
[1672734836933,63.57,11.815,11.799,93.66]
[1672734837134,143.5331,11.817,11.8,20.0]
[1672734837342,143.5331,11.817,11.801,63.65]
[1672734837551,143.5331,11.817,11.802,186.7503]
[1672734837761,143.5331,11.817,11.803,63.64]
[1672734837971,143.5331,11.817,11.803,230.3903]
[1672734838185,143.5331,11.817,11.804,20.0]
[1672734838617,143.5331,11.817,11.804,186.7503]
[1672734840307,20.0,11.815,11.801,63.65]
[1672734840503,13.08,11.81,11.796,233.1056]
[1672734840711,46.0292,11.809,11.797,49.599]
[1672734840917,30.0,11.808,11.798,63.67]
[1672734841457,30.0,11.808,11.797,233.0956]
[1672734841655,30.0,11.808,11.797,169.4256]
[1672734842713,46.0292,11.809,11.797,169.4256]
[1672734842923,46.0292,11.809,11.798,93.67]
[1672734843969,46.0292,11.809,11.798,63.67]
[1672734846490,30.0,11.808,11.797,222.44480453]
[1672734846701,93.61,11.808,11.797,169.4256]
[1672734847538,30.0,11.808,11.797,169.4256]
[1672734847748,63.62,11.807,11.797,169.4256]
[1672734847958,30.0,11.806,11.797,169.4256]
[1672734848910,30.0,11.806,11.788,63.72]
[1672734849111,12.98,11.8,11.788,222.1932]
[1672734850923,30.0,11.799,11.788,222.1932]